bitfinex-derivatives/quotes_ETHF0:USTF0_20250416
["timestamp","ask_amount","ask_price","bid_price","bid_amount"]
[1744831754647,1.34e-06,1555.2,1555.0,0.00964]
[1744831754648,1.28606,1555.1,1555.0,0.00964]
[1744831754846,4.19396,1555.1,1555.0,0.00964]
[1744831755240,9.19396,1555.1,1555.0,0.00964]
[1744831755440,11.12326,1555.1,1554.5,1.2865]
[1744831755743,4.49407,1554.9,1554.7,1.28635]
[1744831756245,1.28635,1554.8,1554.6,1.28643]
[1744831756444,4.49408,1554.9,1554.7,1.28639]
[1744831756747,3.2078,1554.9,1554.7,1.28639]
[1744831757045,4.4941,1554.9,1554.7,1.28639]
[1744831757747,1.693,1554.8,1554.7,1.28639]
[1744831758347,11.5847,1555.1,1555.0,1.28614]
[1744831758549,7.40176,1555.1,1554.9,1.28616]
[1744831759637,2.91117,1555.0,1554.7,1.7038]
[1744831759840,1.625,1554.9,1554.8,1.28623]
[1744831760251,2.91123,1554.9,1554.8,1.28623]
[1744831760649,1.625,1554.9,1554.8,1.28623]
[1744831761454,1.34e-06,1555.2,1555.1,1.28606]
[1744831761751,1.34e-06,1555.2,1555.1,4.49386]
[1744831761952,1.34e-06,1555.2,1555.1,9.49386]
[1744831762250,1.34e-06,1555.2,1555.1,11.20126]
[1744831762855,1.34e-06,1555.2,1555.1,7.99346]
[1744831763153,1.34e-06,1555.2,1555.1,11.20126]
[1744831764345,1.34e-06,1555.2,1555.1,2.99346]
[1744831765649,1.69900134,1555.2,1555.1,2.99346]
[1744831765955,1.69900134,1555.2,1555.1,6.20126]
[1744831766350,1.34e-06,1555.2,1555.1,6.20126]
[1744831766553,1.34e-06,1555.2,1555.1,11.20126]
[1744831767656,1.34e-06,1555.2,1555.1,6.20126]
[1744831768057,1.34e-06,1555.2,1555.1,2.99346]
[1744831768443,1.34e-06,1555.2,1555.1,1.28606]
[1744831769153,1.74390134,1555.2,1555.1,1.28606]
[1744831769944,1.28606,1555.1,1555.0,5.47]
[1744831770452,1.28625,1554.9,1554.7,1.28633]
[1744831770657,3.3455,1554.8,1554.7,1.28633]
[1744831771553,3.3455,1554.8,1554.7,3.08003]
[1744831772256,3.3455,1554.8,1554.7,1.28633]
[1744831778264,1.7439,1554.8,1554.7,2.94293]
[1744831778567,1.6274,1555.0,1554.9,1.28623]
[1744831778862,3.2626,1555.0,1554.9,1.28623]
[1744831779164,2.92134,1555.0,1554.9,5.461]
[1744831779460,2.92134,1555.0,1554.9,6.74723]
[1744831779963,1.6352,1555.0,1554.9,6.74723]
[1744831780650,2.92134,1555.0,1554.9,6.74723]
[1744831781062,1.6352,1555.0,1554.9,6.74723]
[1744831781265,1.28633,1554.8,1554.6,6.7474]
[1744831781466,1.7374,1554.7,1554.6,6.7474]
[1744831781858,6.23159,1554.7,1554.6,5.461]
[1744831782052,6.23159,1554.7,1554.6,6.74747]
[1744831782053,4.8149,1554.7,1554.6,6.74747]
[1744831783061,4.8149,1554.7,1554.4,1.5998]
[1744831783367,1.7374,1554.6,1554.5,6.74756]
[1744831783565,1.7374,1554.6,1554.5,47.54756]
[1744831785168,3.02387,1554.6,1554.5,46.261]
[1744831785665,11.23167,1554.6,1554.5,5.461]
[1744831786166,3.02387,1554.6,1554.5,47.54756]
[1744831786358,3.02387,1554.6,1554.5,6.74756]
[1744831786559,1.7374,1554.6,1554.5,6.74756]
[1744831787867,1.7374,1554.6,1554.5,8.45846]
[1744831788066,1.7374,1554.6,1554.5,6.74756]
[1744831790276,1.7374,1554.6,1554.5,5.461]
[1744831790570,1.7374,1554.6,1554.5,6.74756]
[1744831790772,1.7374,1554.6,1554.5,8.43336]
[1744831790974,1.5497,1554.7,1554.6,1.28647]
[1744831791169,1.5497,1554.7,1554.6,2.97227]
[1744831791566,3.294,1554.7,1554.6,2.97227]
[1744831795982,4.33771,1555.0,1554.8,1.28628]
[1744831796279,1.7679,1554.9,1554.8,6.74828]
[1744831796578,3.05413,1554.9,1554.8,6.74828]
[1744831796769,5.99,1555.1,1555.0,1.28614]
[1744831796972,1.7679,1555.1,1555.0,1.28614]
[1744831797772,3.05398,1555.1,1554.9,4.32656]
[1744831798174,1.7679,1555.0,1554.9,4.32656]
[1744831798374,1.7679,1555.0,1554.9,45.12656]
[1744831799577,1.7679,1555.0,1554.9,43.49586]
[1744831799770,1.7679,1555.0,1554.9,47.53716]
[1744831799975,1.7679,1555.0,1554.9,6.73723]
[1744831800171,6.26184,1555.0,1554.9,5.451]
[1744831800375,1.7679,1555.0,1554.9,6.73723]
[1744831800575,1.34e-06,1555.2,1555.1,1.28606]
[1744831800992,1.34e-06,1555.2,1555.1,6.28606]
[1744831801282,1.34e-06,1555.2,1555.1,9.38706]
[1744831801480,1.34e-06,1555.2,1555.1,45.18706]
[1744831802181,1.34e-06,1555.2,1555.1,56.04306]
[1744831802480,8.49892431,1555.7,1555.6,1.28565]
[1744831802672,14.77897669,1555.8,1555.7,1.28556]
[1744831802877,14.77897669,1555.8,1555.7,2.96336]
[1744831803079,24.27225669,1555.8,1555.7,40.8]
[1744831803281,1.28559,1555.7,1555.4,5.45]
[1744831803576,3.1564,1555.7,1555.6,1.28565]
[1744831803778,3.1564,1555.7,1555.5,42.4778]
[1744831803975,1.4821,1555.7,1555.6,1.28565]
[1744831804183,0.00964134,1555.9,1555.8,1.28548]
[1744831804377,0.00964134,1555.9,1555.8,9.94328]
[1744831804589,0.00964134,1555.9,1555.8,6.73548]
[1744831804889,5.00964134,1555.9,1555.5,5.45]
[1744831805078,1.4821,1555.8,1555.6,1.28558]
[1744831805278,1.4821,1555.8,1555.6,42.08558]
[1744831805585,2.7676,1555.8,1555.6,42.08564]
[1744831805783,1.4821,1555.8,1555.6,42.08564]
[1744831806087,4.6899,1555.8,1555.6,40.8]
[1744831806385,1.4821,1555.8,1555.6,42.08564]
[1744831806584,1.4821,1555.8,1555.7,1.28556]
[1744831806982,0.00964134,1555.9,1555.8,1.28548]
[1744831807180,0.00964134,1555.9,1555.8,6.73548]
[1744831807379,0.00964134,1555.9,1555.8,9.94328]
[1744831807579,1.34e-06,1555.9,1555.8,14.94328]
[1744831807781,3.0068,1556.6,1556.4,1.28496]
[1744831808084,1.2849,1556.5,1556.4,40.8]
[1744831808289,3.21227,1556.5,1555.9,1.28538]
[1744831808582,4.49297,1556.2,1555.9,1.28538]
[1744831808787,4.50261134,1556.2,1556.0,1.2759742]
[1744831808990,8.21744134,1556.2,1555.9,0.00964134]
[1744831809288,3.2078,1556.0,1555.9,0.00964134]
[1744831809785,1.28564,1555.7,1555.4,1.28579]
[1744831809981,3.2135,1555.9,1555.2,5.449]
[1744831809982,3.2078,1555.5,1555.2,5.449]
[1744831810181,3.2078,1555.5,1555.0,1.28608]
[1744831810182,1.28596,1555.3,1555.0,1.28608]
[1744831810484,1.5444,1555.4,1555.0,8.46302767]
[1744831810688,1.5444,1555.4,1555.1,1.286]
[1744831810892,1.28592,1555.3,1555.1,6.735]
[1744831811085,2.83992134,1555.4,1555.2,1.28597]
[1744831811281,1.55404134,1555.4,1555.3,1.28589]
[1744831811481,2.83990134,1555.4,1555.2,1.28597]
[1744831811985,1.55404134,1555.4,1555.1,46.249]
[1744831812186,1.55404134,1555.4,1555.2,1.28597]
[1744831812386,2.83990134,1555.4,1555.2,1.28597]
[1744831813091,1.4661,1555.3,1555.2,1.28597]
[1744831813381,1.4661,1555.3,1555.1,46.249]
[1744831813587,1.4661,1555.3,1555.2,1.28598]
[1744831813788,0.00964134,1555.4,1555.3,1.28589]
[1744831813990,0.00964134,1555.4,1555.3,6.73489]
[1744831814593,0.00964134,1555.4,1555.3,8.44789]
[1744831815288,1.34e-06,1555.4,1555.3,19.30389]
[1744831815485,1.4488,1556.0,1555.8,1.28541]
[1744831815683,1.4488,1556.0,1555.9,5.449]
[1744831815878,1.4488,1556.0,1555.9,6.7344]
[1744831816685,7.73412,1556.0,1555.9,5.449]
[1744831816890,2.73412,1556.0,1555.9,5.449]
[1744831817594,1.4488,1556.0,1555.9,6.7344]
[1744831817792,3.1316,1556.0,1555.9,6.7344]
[1744831818390,4.41692,1556.0,1555.9,5.449]
[1744831819082,4.41692,1556.0,1555.9,6.7344]
[1744831819986,4.41692,1556.0,1555.9,5.449]
[1744831820195,3.1316,1556.0,1555.9,6.7344]
[1744831820791,3.1316,1556.0,1555.9,8.3983]
[1744831821293,3.1316,1556.0,1555.9,6.7344]
[1744831821888,3.1316,1556.0,1555.9,5.449]
[1744831822094,4.41692,1556.0,1555.8,6.74309134]
[1744831822297,1.7486,1555.9,1555.8,6.74309134]
[1744831823296,1.7486,1555.9,1555.8,6.74312134]
[1744831823496,1.7486,1555.9,1555.8,5.45764134]
[1744831823700,1.7486,1555.9,1555.8,6.74312134]
[1744831824382,1.29488134,1556.1,1555.9,1.28536]
[1744831824581,3.14834134,1556.1,1555.9,1.28536]
[1744831824789,4.43358134,1556.1,1555.9,1.28536]
[1744831824990,2.90704,1556.0,1555.8,8.50410134]
[1744831825185,1.6217,1555.9,1555.8,6.74310134]
[1744831825388,2.9071,1555.9,1555.8,5.45764134]
[1744831825592,2.9071,1555.9,1555.8,6.74312134]
[1744831825793,1.6217,1555.9,1555.8,6.74312134]
[1744831825995,1.6217,1555.9,1555.8,5.45764134]
[1744831826192,1.6217,1555.9,1555.8,6.74312134]
[1744831827186,1.6217,1555.9,1555.8,9.95092134]
[1744831827390,3.27264134,1556.1,1556.0,1.28532]
[1744831827899,0.00964134,1556.1,1556.0,1.28532]
[1744831828095,0.00964134,1556.1,1556.0,2.82582]
[1744831828290,0.00964134,1556.1,1556.0,4.49652]
[1744831828799,0.00964134,1556.1,1556.0,7.70432]
[1744831828995,0.00964134,1556.1,1556.0,4.49652]
[1744831829397,0.00964134,1556.1,1556.0,7.70432]
[1744831830800,0.00964134,1556.1,1556.0,12.70432]
[1744831831002,1.34e-06,1556.1,1556.0,12.70432]
[1744831831404,1.34e-06,1556.1,1556.0,53.50432]
[1744831832901,1.4555,1556.7,1556.6,1.28482]
[1744831833202,1.4461742,1556.7,1556.6,6.72082]
[1744831834293,1.626,1556.7,1556.6,8.48752]
[1744831834695,0.00964134,1556.8,1556.6,8.48752]
[1744831834903,0.00964134,1556.8,1556.7,3.05144]
[1744831835293,1.63564134,1556.8,1556.7,3.05144]
[1744831835699,0.00964134,1556.8,1556.7,3.05144]
[1744831836006,0.00964134,1556.8,1556.7,6.25924]
[1744831836208,1.34e-06,1556.8,1556.7,11.25924]
[1744831836409,1.34e-06,1556.8,1556.7,6.25924]
[1744831836907,1.34e-06,1556.8,1556.7,47.05924]
[1744831838306,5.99,1557.6,1557.3,1.28424]
[1744831838500,1.6599,1557.5,1557.4,6.71909]
[1744831838799,1.6599,1557.5,1557.4,6.71916]
[1744831839500,1.6599,1557.5,1557.4,5.435]
[1744831839704,7.94398,1557.5,1557.4,5.435]
[1744831839905,9.38868,1557.5,1557.4,5.435]
[1744831840099,8.1046,1557.5,1557.4,5.435]
[1744831840295,3.1046,1557.5,1557.4,6.71916]
[1744831840605,1.6599,1557.5,1557.4,6.71916]
[1744831840906,1.6599,1557.5,1557.4,8.47436]
[1744831841107,0.00964134,1557.6,1557.5,1.28408]
[1744831841307,0.00964134,1557.6,1557.5,3.03928]
[1744831843005,6.29364134,1557.6,1557.5,40.8]
[1744831843211,12.28364134,1557.6,1557.5,40.8]
[1744831843412,14.00704134,1557.6,1557.5,40.8]
[1744831844209,14.00704134,1557.6,1557.4,1.29379134]
[1744831844210,14.00706134,1557.6,1557.4,1.29379134]
[1744831844406,3.2081,1557.5,1557.4,0.00964134]
[1744831844604,3.2081,1557.5,1557.4,40.80964134]
[1744831844909,3.2081,1557.5,1557.4,42.09380134]
[1744831846512,12.69998,1557.5,1557.4,40.80964134]
[1744831846712,12.69998,1557.5,1557.4,42.09380134]
[1744831846911,12.69998,1557.5,1557.4,40.80964134]
[1744831847614,8.2081,1557.5,1557.4,42.09380134]
[1744831847809,9.49218,1557.5,1557.4,42.09380134]
[1744831848308,8.2081,1557.5,1557.4,42.09380134]
[1744831848503,3.2081,1557.5,1557.4,42.09380134]
[1744831850012,1.7234,1557.5,1557.4,42.09380134]
[1744831850212,0.00964134,1557.6,1557.5,1.28408]
[1744831850513,0.00964134,1557.6,1557.5,2.92208]
[1744831850913,0.00964134,1557.6,1557.5,43.72208]
[1744831851110,0.00964134,1557.6,1557.5,49.15408]
[1744831851410,0.00964134,1557.6,1557.5,47.51608]
[1744831852414,0.00964134,1557.6,1557.4,3.21744134]
[1744831852613,3.2078,1557.5,1556.8,3.21159]
[1744831852915,2.8116,1557.4,1557.2,1.28432]
[1744831853119,4.09578,1557.4,1557.1,1.28434]
[1744831853418,2.8116,1557.4,1557.2,5.432]
[1744831853616,1.7006,1557.3,1557.2,5.432]
[1744831853813,4.9084,1557.3,1557.2,5.432]
[1744831854214,6.19264,1557.3,1557.2,5.432]
[1744831854609,1.28433,1557.2,1557.1,0.00964134]
[1744831854807,3.07403,1557.2,1557.1,0.00964134]
[1744831855018,10.00062,1557.2,1556.9,5.432]
[1744831855209,4.49229,1557.0,1556.9,5.432]
[1744831855410,3.2078,1557.0,1556.6,40.8]
[1744831855610,1.28468,1556.8,1556.7,5.432]
[1744831855810,4.6855,1556.9,1556.7,6.71668]
[1744831856015,1.7897,1556.8,1556.7,5.432]
[1744831856215,4.9975,1556.8,1556.7,5.432]
[1744831856418,6.28217,1556.8,1556.6,42.09443134]
[1744831856615,1.7897,1556.7,1556.6,47.52643134]
[1744831856922,1.7897,1556.7,1556.6,46.24164134]
[1744831857136,3.07444,1556.7,1556.6,5.44164134]
[1744831857421,1.7897,1556.7,1556.6,5.44164134]
[1744831857612,9.06444,1556.7,1556.6,5.44164134]
[1744831858215,7.7797,1556.7,1556.6,6.72646134]
[1744831860309,9.06444,1556.7,1556.6,5.44164134]
[1744831860623,7.7797,1556.7,1556.6,6.71746134]
[1744831860922,0.00964134,1556.8,1556.6,7.05584134]
[1744831861114,3.01250134,1556.8,1556.6,8.34062134]
[1744831861521,1.28474,1556.7,1556.6,7.05584134]
[1744831861826,8.99294,1556.7,1556.6,0.00964134]
[1744831862620,12.7082,1556.7,1555.5,11.74419014]
[1744831862819,3.2078,1555.9,1555.7,6.8559]
[1744831863024,1.6197,1555.8,1555.7,8.14146]
[1744831863224,2.90518,1555.8,1555.7,47.6559]
[1744831863422,1.6197,1555.8,1555.7,47.50956]
[1744831863726,2.90518,1555.8,1555.7,46.224]
[1744831865224,1.6197,1555.8,1555.3,3.2078]
[1744831865423,1.6197,1555.7,1555.4,6.71077]
[1744831865612,1.6197,1555.7,1555.3,1.6793]
[1744831865613,1.28573,1555.5,1555.3,1.6793]
[1744831865815,1.28573,1555.5,1555.4,5.425]
[1744831866018,1.286,1555.2,1555.0,5.425]
[1744831866214,1.286,1555.2,1555.0,7.1669]
[1744831866418,1.286,1555.2,1555.1,40.8]
[1744831866615,2.646,1555.2,1555.1,40.8]
[1744831866821,1.36,1555.2,1555.1,42.08606]
[1744831867025,1.36,1555.2,1555.1,43.82796]
[1744831868129,3.2078,1555.5,1555.1,42.5419]
[1744831868328,1.28609,1555.1,1555.0,5.426]
[1744831868720,2.64599,1555.2,1555.0,47.51213]
[1744831868918,1.36,1555.2,1555.0,46.226]
[1744831869123,1.36,1555.2,1555.0,47.51209]
[1744831869325,1.36,1555.2,1555.1,2.99716]
[1744831869524,3.2078,1555.5,1555.1,1.7111]
[1744831869729,4.1931,1555.6,1555.3,1.28584]
[1744831869930,2.9074,1555.6,1555.4,1.7111]
[1744831870230,4.19311,1555.6,1555.4,1.2858]
[1744831870430,4.19311,1555.6,1555.4,1.7111]
[1744831871631,1.28573,1555.5,1555.4,1.7111]
[1744831871933,1.28581,1555.4,1555.3,5.426]
[1744831872333,3.21497,1555.2,1554.7,1.3926]
[1744831872528,1.41404134,1555.1,1555.0,1.28614]
[1744831872734,2.70016134,1555.1,1554.9,1.28617]
[1744831873033,1.41404134,1555.1,1554.9,5.427]
[1744831873231,1.28614,1555.0,1554.9,5.427]
[1744831873431,2.70014134,1555.1,1554.9,6.71319]
[1744831873633,2.70014134,1555.1,1554.9,8.34759]
[1744831873928,4.49394,1555.0,1554.9,7.0614]
[1744831874227,4.49394,1555.0,1554.9,5.427]
[1744831874619,9.49394,1555.0,1554.9,5.427]
[1744831874825,1.28639,1554.7,1554.6,5.428]
[1744831875029,4.49419,1554.7,1554.6,5.428]
[1744831875336,4.49419,1554.7,1554.6,6.71447]
[1744831875535,3.2078,1554.7,1554.6,5.428]
[1744831875730,4.49419,1554.7,1554.6,5.428]
[1744831876934,4.49419,1554.7,1554.3,5.428]
[1744831876935,1.28664,1554.4,1554.3,5.428]
[1744831877137,3.2078,1554.4,1554.3,5.428]
[1744831877429,4.49444,1554.4,1554.3,5.428]
[1744831877930,9.49444,1554.4,1554.3,5.428]
[1744831878132,12.58604,1554.4,1554.3,5.428]
[1744831878431,1.28678,1554.3,1554.1,1.28686]
[1744831878627,6.1231,1554.2,1554.1,1.28686]
[1744831878830,6.1231,1554.2,1554.1,1.711]
[1744831879329,6.1231,1554.2,1553.7,4.65633]
[1744831879330,15.8263,1554.2,1553.7,40.8]
[1744831879523,15.8263,1554.2,1553.4,3.72452212]
[1744831879524,1.28735,1553.6,1553.4,2.77045]
[1744831879721,1.2875,1553.4,1553.2,95.84461]
[1744831879927,3.21744134,1553.5,1553.3,40.8]
[1744831880128,0.00964134,1553.5,1553.4,2.99847]
[1744831880331,3.2078,1554.0,1553.9,1.28705]
[1744831880531,3.2078,1554.0,1553.9,6.71805]
[1744831880735,4.8363,1554.2,1554.0,1.2869]
[1744831881035,6.12311,1554.2,1553.9,6.718]
[1744831881230,1.28689,1554.1,1554.0,1.6308]
[1744831881435,1.6381,1554.1,1554.0,1.6308]
[1744831882035,2.92499,1554.1,1554.0,1.6308]
[1744831882233,1.6381,1554.1,1554.0,1.6308]
[1744831882732,4.50431134,1554.2,1554.0,1.6308]
[1744831882733,0.00964134,1554.2,1554.1,1.28689]
[1744831883233,8.21744134,1554.2,1553.9,0.00964134]
[1744831883429,4.49477,1554.0,1553.9,0.00964134]
[1744831884131,1.28725,1553.7,1553.4,1.28745]
[1744831884335,1.28723,1553.7,1553.5,1.28734]
[1744831884536,1.28723,1553.7,1553.5,42.08734]
[1744831884741,3.2078,1553.6,1553.5,42.594]
[1744831884931,10.5876,1554.0,1553.5,45.81239]
[1744831885132,9.1455,1554.0,1553.8,1.28707]
[1744831885336,3.1555,1554.0,1553.9,1.794]
[1744831885538,7.65027,1554.0,1553.9,1.794]
[1744831885839,1.28707,1553.9,1553.7,5.432]
[1744831886141,4.9735,1553.8,1553.7,6.71922]
[1744831886333,4.9735,1553.8,1553.7,5.432]
[1744831886534,6.26064,1553.8,1553.7,5.432]
[1744831886734,1.28724,1553.7,1553.5,42.08738]
[1744831886936,4.9735,1553.6,1553.5,42.08738]
[1744831887131,1.28741,1553.5,1553.3,1.4094]
[1744831887434,1.28757,1553.3,1553.1,1.28768]
[1744831887635,6.01304134,1553.4,1553.0,7.2187]
[1744831887837,6.32344134,1553.4,1553.3,1.28755]
[1744831888040,6.17771134,1553.4,1553.2,1.28757]
[1744831888239,6.17771134,1553.4,1553.0,7.2187]
[1744831888439,4.89024134,1553.4,1553.1,1.28766]
[1744831888634,2.96993134,1553.4,1553.2,1.7857]
[1744831888832,1.28755,1553.3,1553.2,1.7857]
[1744831889033,2.96035,1553.3,1553.2,1.7857]
[1744831889647,6.6728,1553.3,1552.7,3.2078]
[1744831889838,1.28805,1552.7,1552.5,1.7857]
[1744831890146,4.49581,1552.8,1552.6,40.8]
[1744831890437,1.28813,1552.6,1552.5,1.7857]
[1744831890637,1.28813,1552.6,1552.4,5.434]
[1744831890638,1.7857,1552.7,1552.4,6.72228]
[1744831890834,1.7857,1552.7,1552.5,40.8]
[1744831891040,1.7857,1552.7,1552.6,1.6515]
[1744831891231,1.7857,1552.7,1552.4,5.434]
[1744831891438,1.7857,1552.7,1552.5,2.93971]
[1744831891737,1.28775,1553.1,1552.8,1.2879]
[1744831891944,4.4956,1553.0,1552.9,3.1248]
[1744831892444,4.4956,1553.0,1552.9,1.6515]
[1744831892642,1.28788,1552.9,1552.8,5.428]
[1744831892942,1.28788,1552.9,1552.6,2.76138]
[1744831892943,1.7857,1552.9,1552.6,1.4733]
[1744831893144,3.2078,1552.7,1552.5,46.228]
[1744831893340,3.2078,1552.7,1552.5,47.8795]
[1744831893548,6.2814,1552.9,1552.5,47.8795]
[1744831893846,1.28797,1552.8,1552.6,1.4733]
[1744831894146,1.28813,1552.6,1552.5,46.228]
[1744831894337,3.2078,1552.9,1552.5,46.228]
[1744831894539,3.2078,1553.2,1552.7,3.22013]
[1744831894738,4.49544,1553.2,1553.0,1.28777]
[1744831894940,3.2078,1553.2,1553.1,8.42292]
[1744831895742,3.21744134,1553.4,1553.2,1.28763]
[1744831895938,0.00964134,1553.4,1553.2,4.35043]
[1744831896139,3.21744134,1553.4,1553.2,4.35043]
[1744831896442,4.50493134,1553.4,1553.2,4.35043]
[1744831896843,3.21744134,1553.4,1553.2,3.0628]
[1744831897043,3.21744134,1553.4,1553.1,5.429]
[1744831897245,4.49543,1553.2,1553.1,5.429]
[1744831897745,1.28776,1553.1,1552.9,1.6631]
[1744831897950,4.4956,1553.0,1552.9,1.6631]
[1744831898151,1.2878,1553.0,1552.8,6.8523]
[1744831898346,1.7673,1552.9,1552.8,9.80337]
[1744831898645,1.28778,1553.1,1552.8,9.80337]
[1744831898844,1.7673,1553.1,1552.9,1.6631]
[1744831899049,1.2878,1553.0,1552.9,1.6631]
[1744831899448,1.2878,1553.0,1552.5,46.229]
[1744831899449,8.2078,1553.0,1552.5,46.229]
[1744831899642,3.2078,1553.0,1552.9,1.28788]
[1744831899948,4.49562,1553.0,1552.8,1.28792]
[1744831900249,3.2078,1553.0,1552.9,1.6825]
[1744831900445,3.2078,1553.0,1552.9,2.97038]
[1744831900748,1.2878,1553.0,1552.9,1.6825]
[1744831900950,1.28778,1553.1,1552.9,2.97037]
[1744831901140,1.28778,1553.1,1552.9,4.33257]
[1744831901751,1.2878,1553.0,1552.9,3.0447]
[1744831902160,6.03914424,1553.2,1552.9,3.0447]
[1744831902343,1.28777,1553.1,1552.9,4.33256]
[1744831902849,1.2878,1553.0,1552.9,3.0447]
[1744831903051,4.4956,1553.0,1552.9,3.0447]
[1744831904554,4.4956,1553.0,1552.9,4.33258]
[1744831904741,4.4956,1553.0,1552.9,3.0447]
[1744831906051,8.2078,1553.0,1552.5,46.23]
[1744831906354,4.49585,1552.7,1552.6,1.7417]
[1744831906652,3.2078,1552.9,1552.8,1.28797]
[1744831906848,3.2078,1553.1,1553.0,1.2878]
[1744831907253,3.2078,1553.1,1552.8,5.43]
[1744831907451,4.49554,1553.1,1552.8,5.43]
[1744831907652,4.49554,1553.1,1552.9,1.28781]
[1744831907854,1.2878,1553.0,1552.8,6.71791]
[1744831908157,1.2878,1553.0,1552.9,1.28788]
[1744831908350,6.2385,1553.1,1552.9,1.28788]
[1744831909856,4.4956,1553.1,1552.9,1.28788]
[1744831910061,4.46264424,1553.2,1552.8,8.64983]
[1744831910251,5.75029424,1553.2,1553.0,1.28776]
[1744831910857,3.2078,1553.1,1553.0,1.28776]
[1744831911257,4.49552,1553.1,1552.8,5.43]
[1744831911457,4.49552,1553.1,1552.9,1.28788]
[1744831911850,4.49552,1553.1,1552.8,5.43]
[1744831912051,4.49552,1553.1,1552.9,1.28784]
[1744831912455,3.2078,1553.1,1553.0,1.2878]
[1744831913554,2.83134424,1553.2,1552.8,8.64986]
[1744831913757,2.83134424,1553.2,1553.1,1.28772]
[1744831913955,2.83134424,1553.2,1553.1,6.71772]
[1744831914362,2.83134424,1553.2,1553.1,11.71772]
[1744831915261,2.83134424,1553.2,1553.1,6.71772]
[1744831917660,2.83134424,1553.2,1553.1,5.43]
[1744831917964,5.78877424,1553.2,1553.1,5.43]
[1744831918162,7.14007424,1553.2,1553.1,5.43]
[1744831919061,5.85244424,1553.2,1553.1,5.43]
[1744831919362,5.85244424,1553.2,1553.1,6.71772]
[1744831919763,2.83134424,1553.2,1553.1,6.71772]
[1744831919968,2.83134424,1553.2,1553.1,8.17012]
[1744831921260,1.39336156,1553.2,1553.1,13.17012]
[1744831921462,1.56e-06,1553.2,1553.1,14.60682]
[1744831921765,5.423,1554.3,1553.4,3.21868]
[1744831921766,3.2078,1554.1,1553.4,3.21868]
[1744831921966,4.49475,1554.1,1553.8,1.28709]
[1744831922166,1.6547,1554.0,1553.9,43.85315]
[1744831922567,2.94167,1554.0,1553.9,42.5661]
[1744831922763,3.21744134,1554.1,1553.9,42.5661]
[1744831922962,1.34e-06,1554.1,1554.0,3.05307]
[1744831923161,3.2078,1554.7,1554.6,1.28647]
[1744831923459,12.45341332,1555.0,1554.6,11.84687]
[1744831923660,12.45341332,1555.0,1554.7,40.8]
[1744831923871,12.45341332,1555.0,1554.9,1.28623]
[1744831924173,11.13389332,1555.0,1554.9,6.70923]
[1744831924376,11.13389332,1555.0,1554.9,13.36433]
[1744831924574,9.57576332,1555.0,1554.9,13.36433]
[1744831924869,8.09264332,1555.0,1554.9,54.16433]
[1744831925266,4.18889332,1555.0,1554.9,54.16433]
[1744831926174,0.00964134,1555.1,1555.0,1.28614]
[1744831926373,0.00964134,1555.1,1554.8,0.00964134]
[1744831926668,3.21744134,1555.1,1554.8,0.00964134]
[1744831926874,3.2078,1554.9,1554.8,0.00964134]
[1744831927267,7.93653,1554.9,1554.8,0.00964134]
[1744831928568,6.6503,1554.9,1554.8,0.00964134]
[1744831928767,7.93653,1554.9,1554.8,0.00964134]
[1744831931679,1.28653,1554.6,1554.3,1.28671]
[1744831931875,1.6542,1554.5,1554.4,40.8]
[1744831932081,1.28641,1554.7,1554.4,42.08664]
[1744831932278,1.28647,1554.6,1554.5,1.7842]
[1744831932477,1.28647,1554.6,1554.4,40.8]
[1744831932777,1.28647,1554.6,1554.4,42.5842]
[1744831933076,2.94066,1554.7,1554.4,43.87083]
[1744831933477,1.28648,1554.6,1554.4,43.87083]
[1744831933678,3.04629,1554.6,1554.4,43.87082]
[1744831933979,1.7598,1554.6,1554.4,43.87082]
[1744831934277,1.7598,1554.6,1554.5,1.28656]
[1744831934479,0.00964134,1555.1,1555.0,1.28614]
[1744831934677,1.28568,1555.6,1555.0,4.49394]
[1744831934887,1.7598,1555.5,1555.1,1.6276]
[1744831935078,1.28585,1555.4,1555.1,2.91359]
[1744831935276,1.28585,1555.4,1555.2,1.6276]
[1744831935580,4.9676,1555.5,1555.2,1.6276]
[1744831935793,1.76944134,1555.5,1555.3,1.28585]
[1744831936085,3.05518134,1555.5,1555.3,1.28589]
[1744831936385,1.76944134,1555.5,1555.3,1.28589]
[1744831936580,1.76944134,1555.5,1555.3,1.28584]
[1744831936774,1.76944134,1555.5,1555.4,1.7079]
[1744831936975,0.00964134,1555.5,1555.4,6.20151]
[1744831937389,0.00964134,1555.5,1555.4,11.20151]
[1744831937785,0.00964134,1555.5,1555.4,6.20151]
[1744831937987,1.29537134,1555.5,1555.4,42.5079]
[1744831938284,0.00964134,1555.5,1555.4,42.5079]
[1744831938693,1.29537134,1555.5,1555.4,42.5079]
[1744831939091,0.00964134,1555.5,1555.4,42.5079]
[1744831939790,0.00964134,1555.5,1555.4,43.79371]
[1744831939988,0.00964134,1555.5,1555.4,48.79371]
[1744831940192,0.00964134,1555.5,1555.4,43.79371]
[1744831941290,0.00964134,1555.5,1555.4,48.79371]
[1744831942487,1.34e-06,1555.5,1555.4,48.79371]
[1744831945193,1.7869,1556.2,1556.1,1.28523]
[1744831945392,1.7775742,1556.2,1556.1,6.70123]
[1744831945581,1.4265,1556.3,1556.2,1.28515]
[1744831945786,1.4265,1556.3,1556.1,6.70117]
[1744831945989,1.28515,1556.2,1556.1,5.416]
[1744831946493,6.28515,1556.2,1556.1,5.416]
[1744831946895,5.0,1556.2,1556.1,5.416]
[1744831947092,1.4265,1556.3,1556.1,5.416]
[1744831947298,0.00964134,1556.4,1556.3,1.28507]